fUST/lending_fUST_20250612
["ID","MTS","AMOUNT","RATE_DAILY","PERIOD"]
[365497134,1749705042797,-405.0,0.00022513,2]
[365497136,1749705042806,-568.31547181,0.00022539,2]
[365497138,1749705042816,-504.99209339,0.0002254,2]
[365497139,1749705042825,-178.602612,0.0002254,7]
[365497141,1749705042834,-151.0,0.00022608,7]
[365497143,1749705042844,-200.0,0.0002261,7]
[365497145,1749705042854,-200.0,0.0002261,7]
[365497147,1749705042863,-200.0,0.0002261,7]
[365497149,1749705042872,-200.0,0.0002261,7]
[365497151,1749705042882,-200.0,0.0002261,7]
[365497153,1749705042892,-200.0,0.0002261,7]
[365497155,1749705042902,-200.0,0.0002261,7]
[365497157,1749705042911,-598.9562422,0.00022659,7]
[365497159,1749705042921,-500.37850843,0.00022725,2]
[365497161,1749705042930,-474.96259027,0.00022725,2]
[365497163,1749705042939,-240.53494243,0.00022739,4]
[365497165,1749705042948,-460.0,0.00022739,4]
[365497167,1749705042958,-460.0,0.00022739,2]
[365497169,1749705042968,-320.0,0.00022739,4]
[365497171,1749705042978,-460.0,0.00022739,4]
[365497173,1749705042987,-460.0,0.00022739,4]
[365497175,1749705042996,-564.68,0.00022739,4]
[365497176,1749705043007,-460.0,0.00022739,4]
[365497178,1749705043016,-467.46,0.00022739,4]
[365497180,1749705043026,-460.0,0.00022739,4]
[365497182,1749705043035,-477.73,0.00022739,4]
[365497184,1749705043045,-460.0,0.00022739,4]
[365497186,1749705043055,-460.0,0.00022739,4]
[365497188,1749705043065,-460.0,0.00022739,4]
[365497190,1749705043075,-460.0,0.00022739,4]
[365497192,1749705043084,-460.0,0.00022739,4]
[365497194,1749705043094,-151.0,0.00022816,7]
[365497195,1749705043103,-598.9562422,0.00022831,8]
[365497198,1749705043114,-601.5794832,0.00022848,2]
[365497199,1749705043123,-151.0,0.000229,7]
[365497201,1749705043133,-3000.0,0.000229,2]
[365497203,1749705043143,-3000.0,0.0002291,2]
[365497205,1749705043153,-3000.0,0.0002292,2]
[365497207,1749705043163,-3000.0,0.0002293,2]
[365497209,1749705043172,-3000.0,0.0002294,2]
[365497211,1749705043181,-3000.0,0.0002295,2]
[365497213,1749705043191,-3000.0,0.0002296,2]
[365497215,1749705043200,-3000.0,0.0002297,2]
[365497217,1749705043209,-545.90561069,0.00022972,72]
[365497219,1749705043219,-3000.0,0.0002298,2]
[365497221,1749705043228,-3000.0,0.0002299,2]
[365497223,1749705043237,-506.12126571,0.00022997,8]
[365497225,1749705043247,-3000.0,0.00023,2]
[365497227,1749705043257,-500.0,0.00023,8]
[365497229,1749705043266,-598.9562422,0.00023003,8]
[365497231,1749705043276,-3000.0,0.0002301,2]
[365497233,1749705043286,-460.0,0.00023013,4]
[365497235,1749705043302,-460.0,0.00023013,2]
[365497237,1749705043311,-545.37,0.00023013,4]
[365497239,1749705043320,-460.0,0.00023013,4]
[365497241,1749705043330,-460.0,0.00023013,4]
[365497243,1749705043341,-467.46,0.00023013,4]
[365497244,1749705043351,-460.0,0.00023013,4]
[365497246,1749705043360,-477.73,0.00023013,4]
[365497249,1749705043370,-460.0,0.00023013,4]
[365497252,1749705043379,-460.0,0.00023013,4]
[365497254,1749705043389,-460.0,0.00023013,4]
[365497256,1749705043398,-460.0,0.00023013,4]
[365497257,1749705043408,-460.0,0.00023013,4]
[365497258,1749705043417,-164.0,0.00023014,7]
[365497259,1749705043427,-3000.0,0.0002302,2]
[365497260,1749705043436,-3000.0,0.0002303,2]
[365497262,1749705043445,-3000.0,0.0002304,2]
[365497264,1749705043455,-3000.0,0.0002305,2]
[365497266,1749705043464,-3000.0,0.0002306,2]
[365497268,1749705043478,-3000.0,0.0002307,2]
[365497270,1749705043492,-3000.0,0.0002308,2]
[365497272,1749705043507,-3000.0,0.0002309,2]
[365497274,1749705043521,-3000.0,0.000231,2]
[365497275,1749705043535,-3000.0,0.0002311,2]
[365497276,1749705043547,-152.086648,0.0002311,7]
[365497277,1749705043558,-3000.0,0.0002312,2]
[365497278,1749705043573,-3000.0,0.0002313,2]
[365497279,1749705043586,-151.0,0.0002313,7]
[365497280,1749705043598,-151.0,0.0002313,7]
[365497281,1749705043612,-288.045181,0.0002313,7]
[365497282,1749705043625,-151.0,0.0002313,7]
[365497283,1749705043638,-151.0,0.0002313,7]
[365497284,1749705043651,-288.045181,0.0002313,7]
[365497285,1749705043665,-151.0,0.0002313,7]
[365497286,1749705043678,-3000.0,0.0002314,2]
[365497287,1749705043691,-151.0,0.0002314,7]
[365497288,1749705043704,-151.0,0.0002314,7]
[365497289,1749705043716,-3000.0,0.0002315,2]
[365497290,1749705043728,-1669.82,0.00023155,2]
[365497291,1749705043741,-3000.0,0.0002316,2]
[365497292,1749705043754,-3000.0,0.0002317,2]
[365497293,1749705043769,-598.9562422,0.00023176,8]
[365497294,1749705043782,-3000.0,0.0002318,2]
[365497295,1749705043794,-3000.0,0.0002319,2]
[365497296,1749705043807,-1358.369977,0.00023197,3]
[365497297,1749705043818,-1547.31,0.000232,2]
[365497298,1749705043829,-3000.0,0.000232,2]
[365497299,1749705043841,-151.0,0.000232,7]
[365497300,1749705043854,-5764.893071,0.0002321,2]
[365497301,1749705043865,-15100.71974639,0.00023221,2]
[365497302,1749705043878,-151.0,0.0002325,7]
[365497303,1749705043891,-151.0,0.0002325,7]
[365497304,1749705043904,-460.0,0.00023287,4]
[365497305,1749705043916,-494.05,0.00023287,2]
[365497306,1749705043930,-460.0,0.00023287,4]
[365497307,1749705043943,-460.0,0.00023287,4]
[365497308,1749705043956,-467.46,0.00023287,4]
[365497309,1749705043968,-460.0,0.00023287,4]
[365497310,1749705043982,-477.73,0.00023287,4]
[365497311,1749705043992,-460.0,0.00023287,4]
[365497312,1749705044003,-460.0,0.00023287,4]
[365497313,1749705044014,-460.0,0.00023287,4]
[365497314,1749705044025,-460.0,0.00023287,4]
[365497315,1749705044038,-460.0,0.00023287,4]
[365497316,1749705044050,-568.31547181,0.00023293,2]
[365497317,1749705044064,-820.41939514,0.00023322,3]
[365497318,1749705044077,-317.0,0.00023322,3]
[365497319,1749705044087,-317.0,0.00023322,3]
[365497320,1749705044097,-317.0,0.00023322,3]
[365497321,1749705044108,-317.0,0.00023322,3]
[365497322,1749705044119,-317.0,0.00023322,3]
[365497323,1749705044131,-317.0,0.00023322,3]
[365497324,1749705044143,-317.0,0.00023322,3]
[365497325,1749705044155,-317.0,0.00023322,3]
[365497326,1749705044166,-324.29868057,0.00023322,3]
[365497327,1749705044177,-800.0,0.00023343,2]
[365497328,1749705044187,-598.9562422,0.00023348,9]
[365497329,1749705044198,-800.0,0.00023402,2]
[365497330,1749705044209,-2200.0,0.00023415,2]
[365497331,1749705044220,-395.80780877,0.0002342,2]
[365497332,1749705044231,-153.3094821,0.00023429,3]
[365497333,1749705044242,-200.0,0.00023465,7]
[365497334,1749705044255,-200.0,0.00023465,7]
[365497335,1749705044266,-200.0,0.00023465,7]
[365497336,1749705044277,-200.0,0.00023465,7]
[365497337,1749705044288,-200.0,0.00023465,7]
[365497338,1749705044303,-200.0,0.00023465,7]
[365497339,1749705044314,-200.0,0.00023465,7]
[365497340,1749705044325,-151.0,0.000235,7]
[365497341,1749705044337,-1137.42,0.000235,7]
[365497342,1749705044349,-4126.31,0.000235,7]
[365497343,1749705044360,-598.9562422,0.00023521,9]
[365497344,1749705044370,-151.0,0.00023534,7]
[365497345,1749705044383,-151.0,0.00023534,7]
[365497346,1749705044394,-151.0,0.00023534,7]
[365497347,1749705044405,-735.479612,0.00023534,2]
[365497348,1749705044416,-230.52729677,0.00023539,2]
[365497349,1749705044427,-460.0,0.00023561,4]
[365497350,1749705044437,-460.0,0.00023561,4]
[365497351,1749705044448,-460.0,0.00023561,4]
[365497352,1749705044459,-467.46,0.00023561,4]
[365497353,1749705044472,-460.0,0.00023561,4]
[365497354,1749705044483,-477.73,0.00023561,4]
[365497355,1749705044494,-460.0,0.00023561,4]
[365497356,1749705044506,-460.0,0.00023561,4]
[365497357,1749705044517,-460.0,0.00023561,4]
[365497358,1749705044529,-460.0,0.00023561,4]
[365497359,1749705044541,-460.0,0.00023561,4]
[365497360,1749705044552,-200.0,0.00023583,2]
[365497361,1749705044564,-215.0738,0.00023596,2]
[365497362,1749705044576,-151.0,0.000236,7]
[365497363,1749705044587,-151.0,0.000236,7]
[365497364,1749705044599,-151.0,0.000236,7]
[365497365,1749705044610,-1561.675247,0.000236,2]
[365497366,1749705044621,-200.0,0.00023606,2]
[365497367,1749705044633,-200.0,0.0002361,2]
[365497368,1749705044644,-230.52729677,0.00023611,2]
[365497369,1749705044655,-230.52729677,0.00023619,2]
[365497370,1749705044668,-200.0,0.00023627,2]
[365497371,1749705044680,-183.278336,0.0002365,7]
[365497373,1749705044692,-230.52729677,0.00023667,2]
[365497375,1749705044703,-1000.0,0.00023671,2]
[365497376,1749705044715,-1000.0,0.00023671,2]
[365497377,1749705044727,-1000.0,0.00023671,2]
[365497378,1749705044740,-1000.0,0.00023671,2]
[365497379,1749705044751,-1000.0,0.00023671,2]
[365497381,1749705044764,-1000.0,0.00023671,2]
[365497382,1749705044776,-1000.0,0.00023671,2]
[365497385,1749705044787,-1000.0,0.00023671,2]
[365497386,1749705044799,-1000.0,0.00023671,2]
[365497387,1749705044810,-1000.0,0.00023671,2]
[365497388,1749705044821,-1000.0,0.00023671,2]
[365497389,1749705044833,-1000.0,0.00023671,2]
[365497390,1749705044845,-1000.0,0.00023671,2]
[365497400,1749705045010,-874.66741135,0.00023671,2]
[365497401,1749705045020,-500.0,0.00023673,2]
[365497402,1749705045030,-508.33895625,0.00023673,2]
[365497403,1749705045039,-500.0,0.00023673,2]
[365497404,1749705045049,-267.59102629,0.00023673,2]
[365497405,1749705045059,-500.0,0.00023673,2]
[365497406,1749705045068,-160.66352102,0.00023673,2]
[365497407,1749705045077,-500.0,0.00023673,2]
[365497408,1749705045087,-500.0,0.00023673,2]
[365497409,1749705045096,-500.0,0.00023673,2]
[365497410,1749705045106,-600.0,0.00023673,2]
[365497411,1749705045116,-500.0,0.00023673,2]
[365497412,1749705045125,-501.69546006,0.00023673,2]
[365497413,1749705045134,-475.24070915,0.00023673,2]
[365497414,1749705045144,-500.0,0.00023673,2]
[365497415,1749705045153,-500.0,0.00023673,2]
[365497416,1749705045162,-375600.21185793,0.00023686,7]
[365497417,1749705045379,-667.82493671,0.00021095,2]
[365497418,1749705045388,-1500.49159008,0.00021269,2]
[365497419,1749705045398,-1500.49159005,0.00021848,2]
[365497420,1749705045407,-36219.93499803,0.00023686,7]
[365497421,1749705045419,-125473.94278357,0.00023686,7]
[365497422,1749705045428,-160.89761,0.00023686,7]
[365497423,1749705045437,-218.929996,0.00023686,7]
[365497424,1749705045447,-204.052119,0.00023686,7]
[365497425,1749705045457,-204.052119,0.00023686,7]
[365497426,1749705045466,-151.0,0.00023686,7]
[365497427,1749705045475,-151.0,0.00023686,7]
[365497428,1749705045485,-151.968769,0.00023686,7]
[365497429,1749705045494,-151.0,0.00023686,7]
[365497430,1749705045503,-151.0,0.00023686,7]
[365497431,1749705045513,-151.0,0.00023686,7]
[365497432,1749705045522,-151.0,0.00023686,7]
[365497433,1749705045532,-151.0,0.00023686,7]
[365497434,1749705045541,-151.0,0.00023686,7]
[365497435,1749705045550,-151.0,0.00023686,7]
[365497436,1749705045559,-151.0,0.00023686,7]
[365497437,1749705045570,-151.0,0.00023686,7]
[365497438,1749705045580,-288.045181,0.00023686,7]
[365497439,1749705045590,-151.0,0.00023686,7]
[365497440,1749705045600,-288.045181,0.00023686,7]
[365497441,1749705045610,-151.0,0.00023686,7]
[365497442,1749705045619,-151.0,0.00023686,7]
[365497443,1749705045630,-151.0,0.00023686,7]
[365497444,1749705045639,-151.0,0.00023686,7]
[365497445,1749705045649,-151.0,0.00023686,7]
[365497446,1749705045659,-151.0,0.00023686,7]
[365497447,1749705045669,-155.0,0.00023686,2]
[365497448,1749705045678,-91755.20352086,0.00023687,2]
[365497449,1749705045688,-204.052119,0.00023687,7]
[365497450,1749705045699,-204.052119,0.00023687,7]
[365497451,1749705045709,-200.0,0.00023691,7]
[365497452,1749705045719,-200.0,0.00023691,7]
[365497453,1749705045728,-200.0,0.00023691,7]
[365497454,1749705045738,-200.0,0.00023691,7]
[365497455,1749705045748,-200.0,0.00023691,7]
[365497456,1749705045762,-200.0,0.00023691,7]
[365497457,1749705045771,-200.0,0.00023691,7]
[365497458,1749705045781,-598.9562422,0.00023693,9]
[365497459,1749705045791,-204.052119,0.000237,7]
[365497460,1749705045801,-204.052119,0.000237,7]
[365497461,1749705045811,-144151.35,0.000237,7]
[365497462,1749705045821,-151.0,0.000237,7]
[365497463,1749705045831,-171.837928,0.000237,7]
[365497464,1749705045840,-1089.741503,0.000237,2]
[365497465,1749705045850,-1089.741503,0.000237,2]
[365497466,1749705045859,-335.678332,0.000237,7]
[365497467,1749705045870,-335.678332,0.000237,7]
[365497468,1749705045880,-151.0,0.000237,7]
[365497469,1749705045890,-151.0,0.000237,7]
[365497470,1749705045899,-151.0,0.000237,7]
[365497471,1749705045909,-158.229924,0.000237,7]
[365497472,1749705045919,-151.0,0.000237,7]
[365497473,1749705045928,-301.619359,0.000237,7]
[365497474,1749705045938,-301.619359,0.000237,7]
[365497475,1749705045947,-151.0,0.000237,7]
[365497476,1749705045956,-151.0,0.000237,7]
[365497477,1749705045965,-151.0,0.000237,7]
[365497478,1749705045976,-151.0,0.000237,7]
[365497479,1749705045985,-151.916327,0.000237,7]
[365497480,1749705045995,-151.0,0.000237,7]
[365497481,1749705046004,-151.0,0.000237,7]
[365497482,1749705046015,-151.0,0.000237,7]
[365497483,1749705046025,-151.0,0.000237,7]
[365497484,1749705046034,-151.0,0.000237,7]
[365497485,1749705046044,-341.62509,0.000237,7]
[365497486,1749705046053,-341.62509,0.000237,7]
[365497487,1749705046062,-151.0,0.000237,7]
[365497488,1749705046071,-151.982778,0.000237,7]
[365497489,1749705046081,-341.62509,0.000237,7]
[365497490,1749705046090,-341.62509,0.000237,7]
[365497491,1749705046100,-151.0,0.000237,7]
[365497492,1749705046110,-151.0,0.000237,7]
[365497493,1749705046119,-300.392179,0.000237,7]
[365497494,1749705046129,-202.59822,0.000237,7]
[365497495,1749705046138,-202.59822,0.000237,7]
[365497496,1749705046147,-151.0,0.000237,7]
[365497497,1749705046157,-151.0,0.000237,7]
[365497498,1749705046167,-202.59822,0.000237,7]
[365497499,1749705046176,-202.59822,0.000237,7]
[365497500,1749705046186,-615.207174,0.000237,7]
[365497501,1749705046196,-615.207174,0.000237,7]
[365497502,1749705046206,-151.0,0.000237,7]
[365497503,1749705046216,-151.0,0.000237,7]
[365497504,1749705046226,-615.207174,0.000237,7]
[365497505,1749705046235,-615.207174,0.000237,7]
[365497506,1749705046246,-151.0,0.000237,7]
[365497507,1749705046257,-151.0,0.000237,7]
[365497508,1749705046267,-151.0,0.000237,7]
[365497509,1749705046277,-288.045181,0.000237,7]
[365497510,1749705046286,-288.045181,0.000237,7]
[365497511,1749705046298,-151.0,0.000237,7]
[365497512,1749705046308,-288.045181,0.000237,7]
[365497513,1749705046318,-288.045181,0.000237,7]
[365497514,1749705046327,-151.0,0.000237,7]
[365497515,1749705046338,-151.0,0.000237,7]
[365497516,1749705046348,-259.102521,0.000237,7]
[365497517,1749705046358,-3105.4252095,0.000237,2]
[365497518,1749705046368,-151.0,0.000237,7]
[365497519,1749705046380,-254.801771,0.000237,7]
[365497520,1749705046391,-151.0,0.000237,7]
[365497521,1749705046400,-986.6095058,0.00023753,3]
[365497522,1749705046410,-151.0,0.00023773,7]
[365497523,1749705046419,-3194.03743669,0.000238,2]
[365497524,1749705046429,-12040.34141101,0.000238,2]
[365497525,1749705046438,-149789.07430774,0.000238,3]
[365497526,1749705046448,-500.0,0.000238,2]
[365497527,1749705046457,-500.0,0.000238,2]
[365497528,1749705046467,-500.0,0.000238,2]
[365497529,1749705046476,-266.0,0.000238,2]
[365497530,1749705046487,-500.0,0.000238,2]
[365497531,1749705046496,-500.0,0.000238,2]
[365497532,1749705046507,-500.0,0.000238,2]
[365497533,1749705046516,-500.0,0.000238,2]
[365497534,1749705046526,-500.0,0.000238,2]
[365497535,1749705046536,-131491.15581402,0.000238,3]
[365497536,1749705046545,-153332.51513684,0.000238,3]
[365497537,1749705046554,-55518.84288363,0.000238,7]
[365497542,1749705046597,-1500.49159005,0.00022428,2]
[365497544,1749705046607,-259.251392,0.0002305,7]
[365497546,1749705046616,-1054.5477202,0.000238,7]
[365497549,1749705046827,-5501.7461711,0.000238,7]
[365497550,1749705046838,-500.0,0.000238,7]
[365497553,1749705046850,-304.71651119,0.000238,7]
[365497557,1749705155408,153.54,0.00017844,2]
[365497558,1749705232471,151.58,0.0001784,2]
[365497564,1749705344715,165.996173,0.00013699,2]
[365497566,1749705624786,-4638.0,0.00018317,2]
[365497569,1749705935218,-443.96974471,0.000183,2]
[365497571,1749705937375,-183.2082641,0.000183,2]
[365497572,1749705939025,-180.81256741,0.000183,2]
[365497573,1749705941335,-240.76098103,0.000183,2]
[365497574,1749705943420,-193.3401252,0.000183,2]
[365497575,1749705945590,-405.77758657,0.000183,2]
[365497577,1749705974028,-158.18523208,0.000183,2]
[365497578,1749705975622,-356.72840426,0.000183,2]
[365497579,1749705980725,-225.72729437,0.000183,2]
[365497580,1749705994301,5000.0,0.00018,2]
[365497587,1749706096805,11308.99534613,0.000125,2]
[365497588,1749706115663,4748.47370015,0.00017,2]
[365497589,1749706119801,576.9558141,0.000149,2]
[365497591,1749706123498,3379.9750874,0.00015,2]
[365497603,1749706200067,900.8757132,0.00018,2]
[365497604,1749706200637,-180.81256741,0.00018,2]
[365497605,1749706205791,-193.3401252,0.00018,2]
[365497606,1749706215601,5000.0,0.00018,2]
[365497607,1749706220714,-225.72729437,0.00018,2]
[365497608,1749706230817,599.87998698,0.00018,2]
[365497655,1749706232300,-1743.78574034,0.00018,2]
[365497656,1749706232310,-160.0,0.00018368,2]
[365497658,1749706232320,-727.83408846,0.00018502,2]
[365497684,1749706238201,-132.7546013,0.00018502,2]
[365497686,1749706238212,-299.31,0.00018743,2]
[365497688,1749706238223,-240.59016973,0.000189,2]
[365497690,1749706238232,-838.717424,0.00019029,2]
[365497692,1749706238242,-448.96,0.00019595,2]
[365497694,1749706238252,-598.61,0.00020447,2]
[365497696,1749706238263,-300.0,0.00020521,2]
[365497698,1749706238272,-373.95155747,0.00020522,2]
[365497775,1749706240562,-7517.70706316,0.00020522,2]
[365497919,1749706243447,-17008.34137937,0.00020522,2]
[365497921,1749706243457,-171.66,0.000209,2]
[365497923,1749706243467,-460.0,0.00021095,4]
[365497925,1749706243478,-460.0,0.00021095,4]
[365497927,1749706243488,-460.0,0.00021095,4]
[365497929,1749706243497,-460.0,0.00021095,4]
[365497932,1749706243507,-460.0,0.00021095,4]
[365497934,1749706243517,-460.0,0.00021095,4]
[365497936,1749706243526,-460.0,0.00021095,4]
[365497938,1749706243536,-467.03383799,0.00021095,4]
[365497939,1749706243545,-460.0,0.00021095,4]
[365497942,1749706243555,-460.0,0.00021095,4]
[365497944,1749706243565,-460.0,0.00021095,4]
[365497945,1749706243575,-460.0,0.00021095,4]
[365497947,1749706243585,-460.0,0.00021095,4]
[365497949,1749706243595,-460.0,0.00021095,4]
[365497951,1749706243604,-460.0,0.00021095,4]
[365497953,1749706243614,-460.0,0.00021095,4]
[365497955,1749706243623,-460.0,0.00021095,4]
[365497957,1749706243635,-448.35475207,0.00021095,4]
[365497959,1749706243644,-460.0,0.00021095,4]
[365497961,1749706243654,-748.26,0.00021299,2]
[365497963,1749706243664,-364.72252226,0.00021365,2]
[365497965,1749706243673,-500.0,0.00021365,2]
[365497967,1749706243683,-500.0,0.00021365,2]
[365497968,1749706243692,-500.0,0.00021365,2]
[365497969,1749706243704,-235.99695644,0.00021365,2]
[365497970,1749706243714,-500.0,0.00021365,2]
[365497971,1749706243724,-500.0,0.00021365,2]
[365497972,1749706243734,-500.0,0.00021365,2]
[365497973,1749706243745,-500.0,0.00021365,2]
[365497974,1749706243755,-500.0,0.00021365,2]
[365497975,1749706243768,-500.0,0.00021365,2]
[365497976,1749706243778,-514.21665762,0.00021365,2]
[365497977,1749706243788,-500.0,0.00021365,2]
[365497978,1749706243798,-500.0,0.00021365,2]
[365497979,1749706243808,-501.87245985,0.00021365,2]
[365497980,1749706243817,-500.0,0.00021365,2]
[365497981,1749706243827,-307.86092735,0.00021365,2]
[365497982,1749706243837,-500.0,0.00021365,2]
[365497983,1749706243846,-507.88418567,0.00021365,2]
[365497984,1749706243856,-460.0,0.00021369,4]
[365497985,1749706243867,-460.0,0.00021369,4]
[365497986,1749706243878,-460.0,0.00021369,4]
[365497987,1749706243889,-460.0,0.00021369,4]
[365497988,1749706243898,-208.39836263,0.00021369,4]
[365497989,1749706243908,-460.0,0.00021369,4]
[365497990,1749706243918,-285.10563546,0.00021369,4]
[365497991,1749706243927,-460.0,0.00021369,4]
[365497992,1749706243938,-460.0,0.00021369,4]
[365497993,1749706243947,-460.0,0.00021369,4]
[365497994,1749706243958,-460.0,0.00021369,4]
[365497995,1749706243968,-460.0,0.00021369,4]
[365497996,1749706243977,-460.0,0.00021369,4]
[365497997,1749706243987,-460.0,0.00021369,4]
[365497998,1749706243998,-460.0,0.00021369,4]
[365497999,1749706244008,-316.81446686,0.00021369,4]
[365498000,1749706244017,-460.0,0.00021369,4]
[365498001,1749706244027,-11862.37599647,0.00021481,2]
[365498002,1749706244036,-160.0,0.00021486,2]
[365498003,1749706244047,-160.0,0.00021486,2]
[365498004,1749706244056,-424.26423502,0.00021486,2]
[365498005,1749706244066,-844.79171733,0.00021486,2]
[365498006,1749706244076,-160.0,0.00021486,2]
[365498007,1749706244085,-213.20212768,0.00021486,2]
[365498008,1749706244095,-229.7508257,0.00021486,2]
[365498009,1749706244105,-160.0,0.00021486,2]
[365498010,1749706244114,-160.0,0.00021486,2]
[365498011,1749706244123,-160.0,0.00021486,2]
[365498012,1749706244133,-160.0,0.00021486,2]
[365498013,1749706244142,-160.0,0.00021486,2]
[365498014,1749706244152,-160.0,0.00021486,2]
[365498015,1749706244162,-835.15920933,0.00021486,2]
[365498016,1749706244171,-460.0,0.00021641,4]
[365498017,1749706244181,-460.0,0.00021641,4]
[365498018,1749706244191,-460.0,0.00021641,4]
[365498019,1749706244200,-601.51963669,0.00021641,4]
[365498020,1749706244209,-460.0,0.00021643,4]
[365498021,1749706244219,-460.0,0.00021643,4]
[365498022,1749706244228,-460.0,0.00021643,4]
[365498023,1749706244238,-460.0,0.00021643,4]
[365498024,1749706244247,-460.0,0.00021643,4]
[365498025,1749706244258,-460.0,0.00021643,4]
[365498026,1749706244268,-460.0,0.00021643,4]
[365498027,1749706244278,-440.0,0.00021643,4]
[365498028,1749706244287,-460.0,0.00021643,4]
[365498029,1749706244296,-329.37,0.00021643,4]
[365498030,1749706244306,-460.0,0.00021643,4]
[365498031,1749706244316,-460.0,0.00021643,4]
[365498032,1749706244325,-460.0,0.00021643,4]
[365498033,1749706244335,-460.0,0.00021643,4]
[365498034,1749706244344,-500.0,0.0002166,2]
[365498035,1749706244354,-458.60035033,0.00021711,2]
[365498036,1749706244364,-160.230216,0.00021912,2]
[365498037,1749706244373,-460.0,0.00021915,4]
[365498038,1749706244383,-460.0,0.00021915,4]
[365498039,1749706244394,-460.0,0.00021915,4]
[365498040,1749706244406,-460.0,0.00021917,4]
[365498041,1749706244416,-460.0,0.00021917,4]
[365498042,1749706244428,-460.0,0.00021917,4]
[365498043,1749706244437,-460.0,0.00021917,4]
[365498044,1749706244448,-460.0,0.00021917,4]
[365498045,1749706244459,-460.0,0.00021917,4]
[365498046,1749706244468,-460.0,0.00021917,4]
[365498047,1749706244479,-460.0,0.00021917,4]
[365498048,1749706244491,-460.0,0.00021917,4]
[365498049,1749706244504,-460.0,0.00021917,4]
[365498050,1749706244514,-897.92,0.00022151,2]
[365498051,1749706244524,-508.73,0.00022189,4]
[365498052,1749706244535,-460.0,0.00022189,4]
[365498053,1749706244546,-460.0,0.00022189,4]
[365498054,1749706244558,-460.0,0.00022191,4]
[365498055,1749706244568,-460.0,0.00022191,4]
[365498056,1749706244580,-460.0,0.00022191,4]
[365498057,1749706244590,-460.0,0.00022191,4]
[365498058,1749706244600,-460.0,0.00022191,4]
[365498059,1749706244610,-460.0,0.00022191,4]
[365498060,1749706244619,-460.0,0.00022191,4]
[365498061,1749706244629,-460.0,0.00022191,4]
[365498062,1749706244639,-460.0,0.00022191,4]
[365498063,1749706244649,-460.0,0.00022191,4]
[365498064,1749706244669,-207.4,0.00022227,2]
[365498065,1749706244681,-151.0,0.00022312,5]
[365498066,1749706244690,-420.0,0.00022333,2]
[365498067,1749706244700,-151.0,0.00022461,6]
[365498068,1749706244713,-460.0,0.00022463,4]
[365498069,1749706244725,-460.0,0.00022463,4]
[365498070,1749706244734,-460.0,0.00022465,4]
[365498071,1749706244744,-460.0,0.00022465,4]
[365498072,1749706244922,-460.0,0.00022465,4]
[365498073,1749706244932,-460.0,0.00022465,4]
[365498074,1749706244943,-460.0,0.00022465,4]
[365498075,1749706244953,-460.0,0.00022465,4]
[365498076,1749706244963,-460.0,0.00022465,4]
[365498077,1749706244973,-460.0,0.00022465,4]